Cogmind - Beta 10.2 @@@ ROGUE MODE // 2021.01.17 @ 19:11:12 Player: Demise Result: Self-destructed Performance ------------- Evolutions (1) 500 Regions Visited (3) 600 Robots Destroyed (39) 195 Value Destroyed (775) 775 Prototype IDs (2) 40 Alien Tech Used (0) 0 Bonus (227) 227 TOTAL SCORE: 2337 Bonus ------- Follower Combat Kills 227 Cogmind --------- Core Integrity 363/400 Matter 225/300 Energy 160/160 System Corruption 0% Temperature Cool (143) Movement Treading (200) Ox2 Location -9/Materials Parts ------- > --- POWER (1) -------- Light Nuclear Core > --- PROPULSION (2) --- Light Treads > --- UTILITY (4) ------ Large Storage Unit Large Storage Unit Hardened Light Armor Plating Hardened Light Armor Plating > --- WEAPON (2) ------- Light Assault Rifle Heavy Assault Rifle > --- INVENTORY (16) --- Ion Engine Light Treads Medium Storage Unit Small Matter Pod (50) Experimental Sensor Array Signal Interpreter Targeting Computer Sensor Drone Bay (20/20) Light Assault Rifle Light Assault Rifle Light Assault Rifle Light Assault Rifle Mining Laser Peak State ------------ > --- POWER ------------ Ion Engine > --- PROPULSION ------- Light Treads Light Treads > --- UTILITY ---------- Large Storage Unit Large Storage Unit Experimental Sensor Array Sensor Drone Bay > --- WEAPON ----------- Assault Rifle Mining Laser > --- INVENTORY -------- Light Ion Engine Light Nuclear Core Medium Storage Unit Small Matter Pod Signal Interpreter Targeting Computer Light Armor Plating Light Armor Plating Light Assault Rifle Light Assault Rifle Light Assault Rifle Light Assault Rifle Light Assault Rifle Light Assault Rifle [Rating: 22] Favorites ----------- Power Ion Engine Engine Ion Engine Power Core Light Nuclear Core Propulsion Light Treads Treads Light Treads Utility Large Storage Unit Device Sensor Drone Bay Storage Large Storage Unit Processor Signal Interpreter Protection Hardened Light Armor Plating Weapon Assault Rifle Ballistic Gun Assault Rifle Special Weapon Mining Laser Build | -11 -10 -10 -9 ------- Run | Scr Mat Min Mat Slots Evolved 2 | . . . 2 Power . | . . . . Propulsion . | . . . . Utility 2 | . . . 2 Weapon . | . . . . Parts Attached 37 | 4 14 1 18 Power 2 | . 1 . 1 Engine 1 | . 1 . . Core 1 | . . . 1 Reactor . | . . . . Propulsion 6 | 2 . . 4 Treads 6 | 2 . . 4 Leg . | . . . . Wheel . | . . . . Hover . | . . . . Flight . | . . . . Utility 13 | . 8 . 5 Device 2 | . . . 2 Storage 7 | . 7 . . Processor 1 | . 1 . . Hackware . | . . . . Protection 3 | . . . 3 Artifact . | . . . . Weapon 16 | 2 5 1 8 Energy Gun . | . . . . Energy Cannon . | . . . . Ballistic Gun 12 | 2 3 . 7 Ballistic Cannon . | . . . . Launcher . | . . . . Special Weapon 4 | . 2 1 1 Impact Weapon . | . . . . Slashing Weapon . | . . . . Piercing Weapon . | . . . . Special Melee Weapon . | . . . . Unidentified Prototypes 2 | . . . 2 Parts Lost 4 | . . . 4 Power . | . . . . Propulsion 2 | . . . 2 Utility 1 | . . . 1 Weapon 1 | . . . 1 Highest Loss Streak 3 | . . . 3 Average Slot Usage (%) 95 | . 89 100 99 Engine 10 | . 9 14 6 Core 1 | . . . 4 Treads 26 | . 28 28 22 Device 2 | . . . 9 Storage 23 | . 21 28 22 Protection 3 | . . . 12 Ballistic Gun 24 | . 26 26 20 Special Weapon 1 | . 1 1 1 Naked Turns . | . . . . Heaviest Build 61 | 3 40 40 61 Greatest Support 40 | 3 40 40 40 Greatest Overweight (x) 3 | . 3 . 1 Average Overweight (x) . | . . . 1 Largest Inventory Capacity 16 | 4 16 16 16 Average Capacity 13 | 4 10 16 16 Most Carried 16 | 4 13 16 16 Average Carried 11 | 3 8 14 15 Final Capacity 16 | 4 16 16 16 Final Carried 16 | 4 12 16 13 Class Distribution -------------------- 89% | Mutant 10% | Scavenger-Mutant Dominant Class ---------------- Mutant | -10/Materials Mutant | -10/Mines Mutant | -9/Materials Resources | -11 -10 -10 -9 ----------- Run | Scr Mat Min Mat Matter Collected 1044 | 296 402 56 290 Remotely . | . . . . Salvage Created 1284 | 137 457 280 410 Parts 76 | 8 34 17 17 Haulers Intercepted 3 | . 2 . 1 Recyclers Shooed . | . . . . Parts Field Recycled . | . . . . Retrieved Matter . | . . . . Parts Self-Destructed . | . . . . Prevented . | . . . . Kills | -11 -10 -10 -9 ------- Run | Scr Mat Min Mat Combat Hostiles Destroyed 24 | . 8 6 10 Guns 24 | . 8 6 10 Classes Destroyed 9 | 2 6 . 1 Worker 3 | . 1 2 . Tunneler 3 | 3 . . . Hauler 3 | . 2 . 1 Recycler 2 | 1 1 . . Operator 1 | . 1 . . Watcher 3 | . 3 . . Swarmer 10 | . 5 2 3 Grunt 13 | . 3 4 6 Sentry 1 | . . . 1 Best Kill Streak 6 | 3 3 2 6 Combat Bots Only 6 | . 3 2 6 Max Kills in Single Turn 1 | 1 1 1 1 Gunslinging . | . . . . Exploded . | . . . . Melee . | . . . . Uniques/NPCs Destroyed . | . . . . Combat | -11 -10 -10 -9 -------- Run | Scr Mat Min Mat Damage Taken 1277 | . 279 155 843 Core 90 | . 42 11 37 Absorbed by Shields . | . . . . Core Remaining (%) 89 | 100 . 78 . Volleys Fired 156 | 14 80 16 46 Largest 2 | 2 2 2 2 Hottest 100 | 40 100 100 100 Shots Fired 276 | 28 128 30 90 Gun 261 | 28 116 28 89 Cannon . | . . . . Launcher . | . . . . Special 15 | . 12 2 1 Kinetic 261 | 28 116 28 89 Thermal 15 | . 12 2 1 Explosive . | . . . . Electromagnetic . | . . . . Robot Hit Streak 13 | 9 12 8 13 Robot Miss Streak 4 | 2 4 2 4 Penetration Max . | . . . . Secondary Targets 6 | . 2 1 3 Max Gunslinging Chain 1 | . 1 1 1 Shots Hit Robots 170 | 21 66 20 63 Core Hits 70 | 8 28 15 19 Critical Hits 3 | 1 1 . 1 Critical Kills . | . . . . Critical Parts Destroyed 3 | 1 1 . 1 Melee Attacks . | . . . . Impact . | . . . . Slashing . | . . . . Piercing . | . . . . Sneak Attacks . | . . . . Combat Hostiles . | . . . . Follow-up Attacks . | . . . . Damage Inflicted 1975 | 206 716 230 823 Guns 1941 | 206 692 230 813 Cannons . | . . . . Explosions . | . . . . Melee . | . . . . Ramming 10 | . . . 10 Kinetic 1941 | 206 692 230 813 Thermal 24 | . 24 . . Explosive . | . . . . Electromagnetic . | . . . . Impact . | . . . . Slashing . | . . . . Piercing . | . . . . Highest Corruption . | . . . . Average Corruption . | . . . . Corruption Purged . | . . . . Overload Shots . | . . . . Overflow Damage . | . . . . Projectiles . | . . . . Explosions . | . . . . Melee . | . . . . Knockbacks . | . . . . Impact . | . . . . Kinetic . | . . . . Secondary . | . . . . Self-Inflicted Damage . | . . . . Shots . | . . . . Rammed 2 | . . . 2 Targets Rammed 2 | . . . 2 Kicked . | . . . . Crushed . | . . . . Highest Temperature 154 | . 15 40 154 Average Temperature 36 | . 7 15 43 Received Heat Transfer 486 | . 105 72 309 Siege Activations . | . . . . Robots Corrupted . | . . . . Combat Hostiles . | . . . . Parts Fried . | . . . . Impact Corruptions . | . . . . Robots Melted . | . . . . Combat Hostiles . | . . . . Parts Melted 1 | . . . 1 Heat Transferred 50 | . 50 . . Parts Sabotaged . | . . . . Parts Stolen . | . . . . Parts Stripped . | . . . . Power Chain Reactions . | . . . . Missiles Intercepted . | . . . . Alert | -11 -10 -10 -9 ------- Run | Scr Mat Min Mat Peak Influence 320 | 20 189 125 320 Initial 41 | . 13 10 41 Average 85 | 7 90 55 123 Maximum Alert Level 1 | . . . 1 Low Security (%) 96 | 100 100 100 85 Level 1 3 | . . . 14 Level 2 . | . . . . Level 3 . | . . . . Level 4 . | . . . . Level 5 . | . . . . High Security . | . . . . Max Security . | . . . . Squads Dispatched 6 | . 2 . 4 Investigation 2 | . 1 . 1 Extermination . | . . . . Reinforcement 4 | . 1 . 3 Assault . | . . . . Garrison . | . . . . Intercept . | . . . . Construction Impeded . | . . . . Haulers Reinforced . | . . . . Stealth | -11 -10 -10 -9 --------- Run | Scr Mat Min Mat Distress Signals 7 | . 2 . 5 Communications Jammed . | . . . . Distress Signals . | . . . . Times Spotted 57 | . 25 7 25 Peak Tracking Total 7 | . 4 3 7 Tactical Retreats 2 | . 1 . 1 Traps | -11 -10 -10 -9 ------- Run | Scr Mat Min Mat Traps Triggered 1 | . 1 . . Indirectly . | . . . . Trap Hack Attempts . | . . . . Triggered . | . . . . Disarmed . | . . . . Reprogrammed . | . . . . Reused . | . . . . Traps Extracted . | . . . . Installed . | . . . . Triggered . | . . . . Machines | -11 -10 -10 -9 ---------- Run | Scr Mat Min Mat Machines Disabled 3 | . . 2 1 Max in Single Turn . | . . . . Machines Sabotaged . | . . . . Garrisons Compromised . | . . . . Overloaded Fab Kills . | . . . . Fab Network Shutdowns . | . . . . Hacking | -11 -10 -10 -9 --------- Run | Scr Mat Min Mat Machines Accessed 13 | . 10 1 2 Terminals 9 | . 7 . 2 Fabricators . | . . . . Repair Stations 1 | . 1 . . Recycling Units 2 | . 2 . . Scanalyzers . | . . . . Garrison Access . | . . . . Total Hacks 35 | . 26 1 8 Successful 16 | . 11 1 4 Failed 19 | . 15 . 4 Catastrophic 1 | . 1 . . Database Lockouts . | . . . . Manual 30 | . 22 . 8 Terminals 26 | . 18 . 8 Fabricators . | . . . . Repair Stations 3 | . 3 . . Recycling Units 5 | . 5 . . Scanalyzers . | . . . . Garrison Access . | . . . . Terminal Hacks 3 | . 1 1 1 Robot Analysis 2 | . 1 . 1 Open Door 1 | . . 1 . Fabricator Hacks . | . . . . Repair Station Hacks 2 | . 2 . . Scan Component 1 | . 1 . . Repair 1 | . 1 . . Recycling Unit Hacks . | . . . . Scanalyzer . | . . . . Garrison Access Hacks . | . . . . Unauthorized Hacks 11 | . 8 . 3 Terminals 9 | . 6 . 3 Botnet 7 | . 5 . 2 Operators 2 | . 1 . 1 Fabricators . | . . . . Repair Stations . | . . . . Recycling Units 2 | . 2 . . Reject 1 | . 1 . . Mask 1 | . 1 . . Scanalyzers . | . . . . Garrison Access . | . . . . Data Cores Recovered . | . . . . Used . | . . . . Hacking Detections 11 | . 9 . 2 Full Trace Events 1 | . . . 1 Feedback Events . | . . . . Feedback Blocked . | . . . . Robot Schematics Acquired . | . . . . Robots Built . | . . . . Matter . | . . . . Time . | . . . . Total Robot Build Rating . | . . . . Part Schematics Acquired . | . . . . Parts Built . | . . . . Matter . | . . . . Time . | . . . . Total Part Build Rating . | . . . . Parts Repaired 1 | . 1 . . Time 13 | . 13 . . Parts Recycled . | . . . . Recycled Matter . | . . . . Retrieved Matter . | . . . . Retrieved Components . | . . . . Parts Scanalyzed . | . . . . Part Schematics Acquired . | . . . . Parts Damaged . | . . . . Bothacking | -11 -10 -10 -9 ------------ Run | Scr Mat Min Mat Used RIF Installer . | . . . . Robots Hacked . | . . . . Non-combat . | . . . . Combat . | . . . . Robot Hacks Applied . | . . . . Relay Couplers Released . | . . . . Robots Rewired . | . . . . Allies Hacked . | . . . . Hacks Repelled . | . . . . Allies | -11 -10 -10 -9 -------- Run | Scr Mat Min Mat Total Allies 2 | . . 2 . Largest Group 2 | . . 2 2 Highest-Rated Group 46 | . . 46 46 Highest-Rated Ally 31 | . . 31 31 Total Orders 3 | . . . 3 EXPLORE 1 | . . . 1 RETURN 2 | . . . 2 Ally Attacks 36 | . . 5 31 Total Damage 571 | . . 43 528 Kills 10 | . . 1 9 Allies Corrupted . | . . . . Allies Melted . | . . . . Intel | -11 -10 -10 -9 ------- Run | Scr Mat Min Mat Robot Analysis Total 2 | . 1 . 1 Derelict Logs Recovered 1 | . . 1 . Drone Launches 2 | . . . 2 Drone Recoveries 2 | . . . 2 Exploration | -11 -10 -10 -9 ------------- Run | Scr Mat Min Mat Turns Passed 3108 | 76 1319 966 747 Spaces Moved 1745 | 45 863 559 278 Core 389 | 45 344 . . Treads 1356 | . 519 559 278 Legs . | . . . . Wheels . | . . . . Hover . | . . . . Flight . | . . . . Fastest Speed 50 | 50 50 160 180 Average Speed 139 | 50 117 160 180 Slowest Speed 200 | 50 200 160 180 Overloaded Moves . | . . . . Propulsion Burnouts . | . . . . Robots Hopped . | . . . . Cave-ins Triggered . | . . . . Exploration Rate (%) 58 | 4 98 99 34 Regions Visited 3 Branch Regions 1 Pre-discovered Areas . | . . . . Known Exits Taken 2 | . 1 1 . Unknown Exits Taken 1 | 1 . . . Scrap Searched 1 | . . 1 . Spaces Dug 7 | . 5 1 1 Terrain Destroyed 12 | . 9 2 1 Melee . | . . . . Projectile 12 | . 9 2 1 AOE . | . . . . Terrain Rammed . | . . . . Walls Destroyed . | . . . . Machines Disabled . | . . . . Actions | -11 -10 -10 -9 --------- Run | Scr Mat Min Mat Total 2144 | 72 1032 601 439 Wait 150 | . 51 18 81 Move 1742 | 44 862 558 278 Hop . | . . . . Pick Up 35 | 7 17 6 5 Fast Attach 7 | 4 3 . . Attach 8 | . 3 . 5 Detach 1 | . 1 . . Swap 22 | . 8 1 13 Drop 21 | 3 7 2 9 Fire 156 | 14 80 16 46 Melee . | . . . . Ram . | . . . . Kick . | . . . . Crush 2 | . . . 2 Escape Stasis . | . . . . Rewire . | . . . . Trap . | . . . . Miscellaneous . | . . . . Route ------- -11/Scrapyard -10/Materials (discovered 4 exits: *Mat x3 / *Min) -10/Mines (discovered 2 exits: *Mat x2) -9/Materials History --------- Turn | Location | Event 7 | -11/Scrapyard | Discovered new exit (range 15) 77 | -11/Scrapyard | Entered Materials 275 | -10/Materials | Discovered new exit (range 5) 334 | -10/Materials | Build established: Mutant 606 | -10/Materials | Discovered new exit (range 5) 734 | -10/Materials | Repaired Assault Rifle 867 | -10/Materials | Discovered new exit (range 8) 881 | -10/Materials | Discovered new exit (range 15) 1072 | -10/Materials | Identified exit to Materials 1109 | -10/Materials | Identified exit to Mines 1396 | -10/Materials | Entered Mines 1561 | -10/Mines | Discovered exit to Materials (range 6) 1851 | -10/Mines | Found the Drone Emporium 1858 | -10/Mines | Found Prototype Device 1967 | -10/Mines | Found a damaged Exp. Sensor Array with a note attached 1970 | -10/Mines | Found Prototype Device 1984 | -10/Mines | Discovered exit to Materials (range 9) 2362 | -10/Mines | Entered Materials 2362 | -9/Materials | Accompanied by 2 allies 2362 | -9/Materials | Evolved 2 slots: Utility x2 2362 | -9/Materials | Identified Sensor Drone Bay 2364 | -9/Materials | Identified Exp. Sensor Array 2367 | -9/Materials | Led the pair of lost Derelicts to an unsafe place 3039 | -9/Materials | Build established: Scavenger-Mutant 3095 | -9/Materials | Lost 3 parts (1n1u1w) 3109 | -9/Materials | Self-destructed Last Messages --------------- 03054_ S-10 Pest destroyed. 03054_ K-01 Serf collects debris. 03057_ ALERT: Hostiles spotted, dispatching reinforcements to Terminal M011. 03057_ R-06 Scavenger collects Flight Unit. 03059_ K-01 Serf collects debris. 03064_ Hvy. Assault Rifle destroyed. 03065_ K-01 Serf collects debris. 03065_ Destroyed Flight Unit. 03068_ S-10 Pest destroyed. 03068_ K-01 Serf collects debris. 03076_ S-10 Pest destroyed. 03076_ Switching to secondary target: G-34 Mercenary. 03081_ K-01 Serf collects debris. 03088_ Slammed into K-01 Serf. 03089_ Acquired 10 matter. 03089_ Slammed into K-01 Serf. 03090_ K-01 Serf collects debris. 03099_ U-05 Engineer lays Concrete. 03106_ Lgt. Treads destroyed. 03106_ G-34 Mercenary destroyed. Map ----- +----------------------------------------------------+ | | | | | ?????????????????????????????????????????????????? | | ?????????????????????????????????????????????????? | | ?????????????????????????????????????????????????? | | ?????????????????????????????????????????????????? | | ?????????????????????????????????????????######### | | ?????????????????????????????????????????# | | ?????????????????????????????????????????# # | | ?????????????????????????? ?????????????# | | ?????????????????????????? ?????????????# | | ?????????????????????????? ?????????????# | | ?????????????????????????? ?????????????# | | ?????????????????????????# ??????????######## ### | | ????????????????????????# #########T#### # | | ????????????????????????# # | | ????????????????????????+ # | | ????????????????????????# # | | ????????????????????????# ############## # | | ????????????????????????## #???????????????### ### | | ?????????????????????????# #?????????????????# #?? | | ?????????????????????????# #?????????######??#!#?? | | ?????????????????????????# #????????##!!!!##?#%#?# | | ?????????????????????????#u#????????#! !###%### | | ??????????###### #########%##???????#! !# ![! # | | ????????? % @u=######### %= # = # | | ????????? *%%u%%u%% %% + | | ????????? w^ k% %*!#T############## # | | ??????????" ############ =%###????????????# # | | ????????????????????????#[= #??????????????## %[## | | ????????????????????????# +???????????????# [ | | ????????????????????????# #???????????????# | | ????????????????????????# #???????????????# | | ????????????????????????# a #???????????????# | | ????????????????????????# #???????????????# | | ????????????????????????# #???????????????# | | ????????????????????????# #?????????????####+### | | ????????????????????????# #?????????????# | | ????????????????????????# #?????????????# | | ????????????????????????# #?????????????+ | | ????????????????????????# +?????????????# | | ????????????????????????# #?????????????# | | ????????????????????????? #?????????????# | | ????????????????????????? #?????????????# | | ????????????????????????? ??????????????# | | ??????????????????????????????????????????# | | ??????????????????????????????????????????#####+## | | ?????????????????????????????????????????????????? | | ?????????????????????????????????????????????????? | | ?????????????????????????????????????????????????? | +----------------------------------------------------+ Best States ------------- Heat Dissipation 28 Energy Generation 14 Energy Capacity 250 Matter Stores 300 Matter Capacity 300 Sight Range 16 Robot Scan Range 30 Terrain Scan Density 10 Armor Coverage 300 Evasion (%) 50 Recoil Reduction 2 Item Schematics ----------------- None Robot Schematics ------------------ None Fabricated ------------ Nothing Alien Tech Used ----------------- None Achievements -------------- None Challenges ------------ None Game ------ Seed CoolantArchitectShredder Manual? 0 Play Time 00:26:14 Cumulative 215.9 hours Start 2021.01.17 @ 16:56:17 End 2021.01.17 @ 19:11:12 Sessions 3 Manual Loads 0 Difficulty Rogue Special Mode None Game No. 196 Rogue 196 Adventurer 0 Explorer 0 Win Type - Total 1 Types 0/0/0/1/0/0/0/0/0 Lore% 60 Gallery% 71 Achievement% 57 Wizard Run 0 Options --------- ASCII 0 Keyboard 1 Movement Numpad Keybinds 0 Fullscreen 1 Font 12/Terminus Map View 83x54 Tactical HUD 1 Map Filters NONE Filters NONE Steam 1 RUN: 6535d396-1477-42b9-afdd-fad4a111e26a